[Event "Early-Titled-Tuesday-Blitz-February-06-2024"]
[Site "Chess.com"]
[Date "2024.02.06"]
[Round "7"]
[White "PapaieDudu"]
[Black "Ind1anStar"]
[Result "0-1"]
[WhiteElo "2417"]
[BlackElo "2595"]
[TimeControl "180+1"]
[EndTime "9:19:19 PST"]
[Termination "Ind1anStar won by resignation"]

1. e4 {[%clk 0:03:00.7]} 1... e6 {[%clk 0:02:56.5]} 2. Nf3 {[%clk 0:02:58.2]}
2... d5 {[%clk 0:02:56.4]} 3. e5 {[%clk 0:02:58.5]} 3... c5 {[%clk 0:02:56.2]}
4. b4 {[%clk 0:02:58.2]} 4... cxb4 {[%clk 0:02:57.1]} 5. a3 {[%clk 0:02:58.2]}
5... bxa3 {[%clk 0:02:58]} 6. d4 {[%clk 0:02:58.5]} 6... Nc6 {[%clk 0:02:58.3]}
7. c3 {[%clk 0:02:58.5]} 7... Nge7 {[%clk 0:02:52]} 8. Bd3 {[%clk 0:02:55.4]}
8... Ng6 {[%clk 0:02:51.7]} 9. h4 {[%clk 0:02:55.6]} 9... Be7 {[%clk 0:02:42.7]}
10. Ng5 {[%clk 0:02:43.6]} 10... Ngxe5 {[%clk 0:02:16]} 11. dxe5 {[%clk
0:02:38.5]} 11... Nxe5 {[%clk 0:02:16.9]} 12. Bb5+ {[%clk 0:02:36.8]} 12... Bd7
{[%clk 0:02:15.8]} 13. Nxa3 {[%clk 0:02:34.7]} 13... Bxb5 {[%clk 0:02:06]} 14.
Nxb5 {[%clk 0:02:34.2]} 14... h6 {[%clk 0:02:03.6]} 15. Bf4 {[%clk 0:02:02.9]}
15... Bf6 {[%clk 0:00:51.1]} 16. Bxe5 {[%clk 0:01:45.8]} 16... Bxe5 {[%clk
0:00:48.8]} 17. Nxf7 {[%clk 0:01:25.8]} 17... Kxf7 {[%clk 0:00:39.4]} 18. Qh5+
{[%clk 0:01:24.9]} 18... Kf6 {[%clk 0:00:39.8]} 19. O-O {[%clk 0:01:01.7]} 19...
Qe8 {[%clk 0:00:20.7]} 20. Qe2 {[%clk 0:00:58.4]} 20... a6 {[%clk 0:00:18.5]}
21. f4 {[%clk 0:00:58]} 21... Bb8 {[%clk 0:00:17.5]} 22. Nd4 {[%clk 0:00:57]}
22... Kf7 {[%clk 0:00:17.2]} 23. f5 {[%clk 0:00:54.1]} 23... e5 {[%clk
0:00:17.4]} 24. Qh5+ {[%clk 0:00:50.2]} 24... Ke7 {[%clk 0:00:15.6]} 25. f6+
{[%clk 0:00:50.5]} 25... gxf6 {[%clk 0:00:15.1]} 26. Nf5+ {[%clk 0:00:50.7]}
26... Kd7 {[%clk 0:00:15.5]} 27. Qg4 {[%clk 0:00:46.3]} 27... Qe6 {[%clk
0:00:15.5]} 28. Qg7+ {[%clk 0:00:46.2]} 28... Kc6 {[%clk 0:00:13.5]} 29. Kh1
{[%clk 0:00:34.4]} 29... Kb6 {[%clk 0:00:11.1]} 30. Qxh8 {[%clk 0:00:29.7]}
30... e4 {[%clk 0:00:09.3]} 31. Qd8+ {[%clk 0:00:16.7]} 31... Ka7 {[%clk
0:00:08.8]} 32. Qa5 {[%clk 0:00:14.2]} 32... Qe5 {[%clk 0:00:07.2]} 33. Qc5+
{[%clk 0:00:14.7]} 33... b6 {[%clk 0:00:07.3]} 34. Qg1 {[%clk 0:00:13.2]} 34...
Bc7 {[%clk 0:00:06.2]} 35. g3 {[%clk 0:00:11.4]} 35... Rg8 {[%clk 0:00:06.6]}
36. Rf2 {[%clk 0:00:09.6]} 36... Rg4 {[%clk 0:00:06.4]} 37. Rg2 {[%clk
0:00:08.8]} 37... Qxf5 {[%clk 0:00:06.1]} 38. Rf1 {[%clk 0:00:08.5]} 38... Qe5
{[%clk 0:00:06.3]} 39. Rff2 {[%clk 0:00:05.7]} 39... Rxg3 {[%clk 0:00:06.4]} 40.
Rxg3 {[%clk 0:00:05.5]} 40... Qxg3 {[%clk 0:00:07.3]} 41. Qxg3 {[%clk
0:00:05.8]} 41... Bxg3 {[%clk 0:00:08.2]} 42. Rxf6 {[%clk 0:00:06.6]} 42... Be5
{[%clk 0:00:09]} 43. Rf5 {[%clk 0:00:05.5]} 43... Bxc3 {[%clk 0:00:09.3]} 44.
Rxd5 {[%clk 0:00:06.2]} 44... e3 {[%clk 0:00:09.7]} 45. Rd7+ {[%clk 0:00:04.6]}
45... Kb8 {[%clk 0:00:10.1]} 46. Re7 {[%clk 0:00:05.3]} 46... Bd2 {[%clk
0:00:09.8]} 47. Kg2 {[%clk 0:00:05.6]} 47... a5 {[%clk 0:00:10.2]} 48. Kf3
{[%clk 0:00:06.2]} 48... a4 {[%clk 0:00:09.5]} 49. Re4 {[%clk 0:00:02.6]} 49...
b5 {[%clk 0:00:09.1]} 50. Re5 {[%clk 0:00:02.3]} 50... a3 {[%clk 0:00:08.2]} 51.
Rxb5+ {[%clk 0:00:03]} 51... Kc7 {[%clk 0:00:08.7]} 52. Rb3 {[%clk 0:00:02.9]}
52... Bc1 {[%clk 0:00:08.3]} 53. Rc3+ {[%clk 0:00:01.9]} 53... Kd6 {[%clk
0:00:08.7]} 54. Rc2 {[%clk 0:00:02.2]} 54... Bb2 {[%clk 0:00:08.5]} 55. Ke2
{[%clk 0:00:01.3]} 55... a2 {[%clk 0:00:08.5]} 56. Rxb2 {[%clk 0:00:01.5]} 56...
a1=Q {[%clk 0:00:08.9]} 57. Rb6+ {[%clk 0:00:02.2]} 57... Kc5 {[%clk 0:00:09]}
58. Rxh6 {[%clk 0:00:02.5]} 58... Qd4 {[%clk 0:00:09.1]} 59. Rh5+ {[%clk
0:00:02.4]} 59... Kd6 {[%clk 0:00:09.1]} 60. Rg5 {[%clk 0:00:02.8]} 60... Qd2+
{[%clk 0:00:09.3]} 61. Kf3 {[%clk 0:00:03.1]} 61... Qf2+ {[%clk 0:00:09.6]} 62.
Ke4 {[%clk 0:00:03.8]} 62... e2 {[%clk 0:00:10.5]} 63. Rg6+ {[%clk 0:00:04.1]}
63... Kc5 {[%clk 0:00:10.9]} 64. Rg5+ {[%clk 0:00:04.2]} 64... Kc4 {[%clk
0:00:11.5]} 65. Rg1 {[%clk 0:00:02.4]} 65... Qxg1 {[%clk 0:00:11.3]} 66. h5
{[%clk 0:00:02.2]} 66... e1=Q+ {[%clk 0:00:11.5]} 67. Kf5 {[%clk 0:00:02.9]}
67... Qc5+ {[%clk 0:00:11.6]} 68. Kg6 {[%clk 0:00:03.3]} 68... Qe6+ {[%clk
0:00:11.8]} 69. Kh7 {[%clk 0:00:03.2]} 69... Qce7+ {[%clk 0:00:12.5]} 0-1

[Event "Early-Titled-Tuesday-Blitz-February-06-2024"]
[Site "Chess.com"]
[Date "2024.02.06"]
[Round "7"]
[White "Eagle_2019"]
[Black "ChristopherYoo"]
[Result "0-1"]
[WhiteElo "2859"]
[BlackElo "2972"]
[TimeControl "180+1"]
[EndTime "9:19:28 PST"]
[Termination "ChristopherYoo won on time"]

1. Nf3 {[%clk 0:03:00.1]} 1... Nf6 {[%clk 0:02:59.4]} 2. c4 {[%clk 0:02:59.7]}
2... g6 {[%clk 0:02:59.5]} 3. g3 {[%clk 0:03:00]} 3... Bg7 {[%clk 0:02:59.6]} 4.
Bg2 {[%clk 0:03:00.7]} 4... O-O {[%clk 0:03:00.1]} 5. O-O {[%clk 0:03:01.3]}
5... d6 {[%clk 0:02:59.9]} 6. d4 {[%clk 0:03:01.5]} 6... c6 {[%clk 0:02:59.6]}
7. Nc3 {[%clk 0:03:00.6]} 7... Bf5 {[%clk 0:03:00.3]} 8. Ng5 {[%clk 0:02:54.9]}
8... e5 {[%clk 0:02:55.2]} 9. d5 {[%clk 0:02:29.1]} 9... Qe7 {[%clk 0:02:48.8]}
10. e4 {[%clk 0:02:26.8]} 10... Bg4 {[%clk 0:02:48.5]} 11. f3 {[%clk 0:02:26.8]}
11... Bd7 {[%clk 0:02:47.9]} 12. Nh3 {[%clk 0:02:26.5]} 12... Na6 {[%clk
0:02:46.8]} 13. Be3 {[%clk 0:02:23.8]} 13... cxd5 {[%clk 0:02:46.5]} 14. cxd5
{[%clk 0:02:23.8]} 14... Rfc8 {[%clk 0:02:43.9]} 15. Nf2 {[%clk 0:02:23.1]}
15... b5 {[%clk 0:02:32.6]} 16. a3 {[%clk 0:02:10]} 16... Nc5 {[%clk 0:02:23.4]}
17. Rc1 {[%clk 0:02:07.7]} 17... a5 {[%clk 0:02:18.1]} 18. b4 {[%clk 0:01:56.7]}
18... axb4 {[%clk 0:02:16.4]} 19. axb4 {[%clk 0:01:57.6]} 19... Na4 {[%clk
0:02:16.8]} 20. Qb3 {[%clk 0:01:52.1]} 20... Nh5 {[%clk 0:02:05.5]} 21. Ne2
{[%clk 0:01:45.3]} 21... f5 {[%clk 0:02:02.4]} 22. Kh1 {[%clk 0:01:31.3]} 22...
Qf7 {[%clk 0:01:59.2]} 23. f4 {[%clk 0:01:26.7]} 23... Nf6 {[%clk 0:01:52.4]}
24. fxe5 {[%clk 0:01:14.2]} 24... dxe5 {[%clk 0:01:53.3]} 25. exf5 {[%clk
0:01:13.7]} 25... gxf5 {[%clk 0:01:50.1]} 26. Nd3 {[%clk 0:01:10.2]} 26... Rxc1
{[%clk 0:01:49.8]} 27. Rxc1 {[%clk 0:01:07.3]} 27... Ne4 {[%clk 0:01:42.6]} 28.
Nc5 {[%clk 0:01:02.9]} 28... Nd6 {[%clk 0:01:33]} 29. Ne6 {[%clk 0:01:01.3]}
29... Nc4 {[%clk 0:01:28.3]} 30. Bc5 {[%clk 0:00:48.6]} 30... Rc8 {[%clk
0:01:23.8]} 31. Bg1 {[%clk 0:00:36.7]} 31... Bxe6 {[%clk 0:01:20]} 32. dxe6
{[%clk 0:00:36.6]} 32... Qxe6 {[%clk 0:01:20.9]} 33. Qf3 {[%clk 0:00:30.6]}
33... e4 {[%clk 0:01:13.5]} 34. Qh5 {[%clk 0:00:30.4]} 34... Qg6 {[%clk
0:00:55.6]} 35. Qh3 {[%clk 0:00:30.3]} 35... Bh6 {[%clk 0:00:35.3]} 36. Rf1
{[%clk 0:00:27.5]} 36... Rf8 {[%clk 0:00:35.3]} 37. Nd4 {[%clk 0:00:25.9]} 37...
Nd6 {[%clk 0:00:23.7]} 38. Nc6 {[%clk 0:00:25.7]} 38... Bg5 {[%clk 0:00:22.4]}
39. Bc5 {[%clk 0:00:18.9]} 39... Nxc5 {[%clk 0:00:22.2]} 40. bxc5 {[%clk
0:00:19]} 40... Nc4 {[%clk 0:00:22.8]} 41. Nd4 {[%clk 0:00:17.3]} 41... Ne3
{[%clk 0:00:23.3]} 42. Re1 {[%clk 0:00:14.5]} 42... b4 {[%clk 0:00:21.5]} 43.
Bf1 {[%clk 0:00:13.8]} 43... Qf6 {[%clk 0:00:19.5]} 44. Qh5 {[%clk 0:00:09.2]}
44... Ng4 {[%clk 0:00:12.9]} 45. Bc4+ {[%clk 0:00:08.4]} 45... Kh8 {[%clk
0:00:11.2]} 46. Ne6 {[%clk 0:00:08.6]} 46... Rg8 {[%clk 0:00:11.5]} 47. Nxg5
{[%clk 0:00:08.6]} 47... Rxg5 {[%clk 0:00:12.1]} 48. Qe8+ {[%clk 0:00:08.4]}
48... Kg7 {[%clk 0:00:12.7]} 49. Qd7+ {[%clk 0:00:06.8]} 49... Kh6 {[%clk
0:00:12.6]} 50. Qd6 {[%clk 0:00:06.5]} 50... Rg6 {[%clk 0:00:07.5]} 51. Qxf6
{[%clk 0:00:06.1]} 51... Rxf6 {[%clk 0:00:08]} 52. Bd5 {[%clk 0:00:04.6]} 52...
Nf2+ {[%clk 0:00:07.4]} 53. Kg2 {[%clk 0:00:04.7]} 53... Nd3 {[%clk 0:00:07.8]}
54. Rb1 {[%clk 0:00:04.7]} 54... Nxc5 {[%clk 0:00:08.3]} 55. Rxb4 {[%clk
0:00:04.8]} 55... Rd6 {[%clk 0:00:09]} 56. Bc4 {[%clk 0:00:03.5]} 56... Rd2+
{[%clk 0:00:09]} 57. Kh3 {[%clk 0:00:03.3]} 57... Kg5 {[%clk 0:00:09.2]} 58. Rb5
{[%clk 0:00:02.9]} 58... Nd3 {[%clk 0:00:09]} 59. Be6 {[%clk 0:00:03]} 59...
Nf2+ {[%clk 0:00:08.9]} 60. Kg2 {[%clk 0:00:03.5]} 60... Ng4+ {[%clk 0:00:09.2]}
61. Kg1 {[%clk 0:00:03.5]} 61... Ne3 {[%clk 0:00:08.1]} 62. h3 {[%clk 0:00:04]}
62... Rg2+ {[%clk 0:00:06.9]} 63. Kh1 {[%clk 0:00:04]} 63... Rxg3 {[%clk
0:00:07.4]} 64. Kh2 {[%clk 0:00:03.3]} 64... Rf3 {[%clk 0:00:07.5]} 65. Rb3
{[%clk 0:00:02.8]} 65... Kh4 {[%clk 0:00:05.9]} 66. Kg1 {[%clk 0:00:02.4]} 66...
Kg3 {[%clk 0:00:04.3]} 67. Rb1 {[%clk 0:00:02]} 67... f4 {[%clk 0:00:04.6]} 68.
Re1 {[%clk 0:00:01.7]} 68... Rf2 {[%clk 0:00:04.8]} 69. Kh1 {[%clk 0:00:01.4]}
69... Rh2+ {[%clk 0:00:04.4]} 70. Kg1 {[%clk 0:00:01.9]} 70... Rg2+ {[%clk
0:00:05]} 71. Kh1 {[%clk 0:00:02.3]} 71... Kf2 {[%clk 0:00:05.3]} 72. Rc1 {[%clk
0:00:02.1]} 72... f3 {[%clk 0:00:05.8]} 0-1

[Event "Early-Titled-Tuesday-Blitz-February-06-2024"]
[Site "Chess.com"]
[Date "2024.02.06"]
[Round "7"]
[White "KubaGepard"]
[Black "Gryffindorac8"]
[Result "1-0"]
[WhiteElo "2559"]
[BlackElo "2367"]
[TimeControl "180+1"]
[EndTime "9:19:36 PST"]
[Termination "KubaGepard won by checkmate"]

1. e4 {[%clk 0:02:58.1]} 1... c5 {[%clk 0:02:59.6]} 2. Nf3 {[%clk 0:02:57.7]}
2... d6 {[%clk 0:02:59.5]} 3. d4 {[%clk 0:02:58.3]} 3... cxd4 {[%clk 0:03:00.4]}
4. Nxd4 {[%clk 0:02:59.1]} 4... Nf6 {[%clk 0:03:00.8]} 5. Nc3 {[%clk 0:02:59.7]}
5... a6 {[%clk 0:03:01.2]} 6. Be3 {[%clk 0:02:59.3]} 6... e5 {[%clk 0:03:01.5]}
7. Nf3 {[%clk 0:02:58.6]} 7... Be7 {[%clk 0:03:00.8]} 8. Bc4 {[%clk 0:02:58]}
8... Be6 {[%clk 0:03:00.8]} 9. Bxe6 {[%clk 0:02:58]} 9... fxe6 {[%clk
0:03:01.2]} 10. Ng5 {[%clk 0:02:58.6]} 10... Qd7 {[%clk 0:03:01.3]} 11. Qf3
{[%clk 0:02:58.5]} 11... Nc6 {[%clk 0:03:01.2]} 12. Qh3 {[%clk 0:02:56.4]} 12...
Nd8 {[%clk 0:03:01.3]} 13. Bb6 {[%clk 0:02:55.7]} 13... h6 {[%clk 0:03:01.3]}
14. O-O-O {[%clk 0:02:52.2]} 14... O-O {[%clk 0:02:36.8]} 15. Bxd8 {[%clk
0:02:50.9]} 15... hxg5 {[%clk 0:02:36.8]} 16. Bxe7 {[%clk 0:02:51.3]} 16... Qxe7
{[%clk 0:02:37.3]} 17. Qd3 {[%clk 0:02:49.6]} 17... Rfd8 {[%clk 0:02:31.1]} 18.
f3 {[%clk 0:02:45.4]} 18... b5 {[%clk 0:02:28.8]} 19. a3 {[%clk 0:02:44]} 19...
Rac8 {[%clk 0:02:28.4]} 20. Qe3 {[%clk 0:02:39.1]} 20... d5 {[%clk 0:02:26]} 21.
exd5 {[%clk 0:02:33.5]} 21... exd5 {[%clk 0:02:26.9]} 22. Qxg5 {[%clk 0:02:31]}
22... Rxc3 {[%clk 0:01:58.1]} 23. bxc3 {[%clk 0:02:29.4]} 23... Qxa3+ {[%clk
0:01:57.6]} 24. Kb1 {[%clk 0:02:26.5]} 24... Qxc3 {[%clk 0:01:46.3]} 25. Rd3
{[%clk 0:02:25.3]} 25... Qc7 {[%clk 0:01:46.5]} 26. Re1 {[%clk 0:02:23.4]} 26...
Rc8 {[%clk 0:01:39.3]} 27. Qd2 {[%clk 0:02:22.8]} 27... e4 {[%clk 0:01:35.5]}
28. Rxd5 {[%clk 0:02:15.3]} 28... exf3 {[%clk 0:01:05.8]} 29. Rg5 {[%clk
0:02:12.8]} 29... fxg2 {[%clk 0:00:30.5]} 30. Qxg2 {[%clk 0:02:09.4]} 30... b4
{[%clk 0:00:17.8]} 31. Rg1 {[%clk 0:02:05.4]} 31... Ne8 {[%clk 0:00:17.6]} 32.
Qd5+ {[%clk 0:02:03.5]} 32... Qf7 {[%clk 0:00:17.7]} 33. Qxf7+ {[%clk
0:01:48.3]} 33... Kxf7 {[%clk 0:00:18.6]} 34. Ra5 {[%clk 0:01:48.2]} 34... Rc6
{[%clk 0:00:18.3]} 35. Rg4 {[%clk 0:01:45.9]} 35... Rb6 {[%clk 0:00:17.6]} 36.
Ra4 {[%clk 0:01:45.7]} 36... a5 {[%clk 0:00:14.8]} 37. Rxa5 {[%clk 0:01:45.4]}
37... b3 {[%clk 0:00:15.1]} 38. c3 {[%clk 0:01:45.4]} 38... Nf6 {[%clk
0:00:15.2]} 39. Rb4 {[%clk 0:01:44.8]} 39... Re6 {[%clk 0:00:12.3]} 40. Rxb3
{[%clk 0:01:44.8]} 40... Re2 {[%clk 0:00:11.7]} 41. Rb2 {[%clk 0:01:44.6]} 41...
Re1+ {[%clk 0:00:10.3]} 42. Ka2 {[%clk 0:01:44.2]} 42... Ne4 {[%clk 0:00:10.6]}
43. Rc2 {[%clk 0:01:43.5]} 43... Re3 {[%clk 0:00:10]} 44. Kb2 {[%clk 0:01:42.1]}
44... Ke6 {[%clk 0:00:10]} 45. c4 {[%clk 0:01:41.1]} 45... Kd6 {[%clk 0:00:10]}
46. c5+ {[%clk 0:01:40.3]} 46... Kc6 {[%clk 0:00:08.3]} 47. Ra6+ {[%clk
0:01:40.6]} 47... Kd5 {[%clk 0:00:06.7]} 48. c6 {[%clk 0:01:38.6]} 48... Nd6
{[%clk 0:00:06.7]} 49. c7 {[%clk 0:01:38.3]} 49... Re8 {[%clk 0:00:05.1]} 50.
Rxd6+ {[%clk 0:01:37.7]} 50... Kxd6 {[%clk 0:00:05.9]} 51. c8=Q {[%clk
0:01:38.2]} 51... Rxc8 {[%clk 0:00:06.4]} 52. Rxc8 {[%clk 0:01:37.8]} 52... Ke6
{[%clk 0:00:07.3]} 53. Rc3 {[%clk 0:01:37.9]} 53... g5 {[%clk 0:00:08.2]} 54.
Rg3 {[%clk 0:01:37.4]} 54... Kf5 {[%clk 0:00:09.1]} 55. Kc2 {[%clk 0:01:37]}
55... Kf4 {[%clk 0:00:10]} 56. Kd2 {[%clk 0:01:37.2]} 56... g4 {[%clk
0:00:10.9]} 57. Ke2 {[%clk 0:01:38.1]} 57... Kg5 {[%clk 0:00:11.8]} 58. Kf2
{[%clk 0:01:38.8]} 58... Kh4 {[%clk 0:00:12.7]} 59. Ke3 {[%clk 0:01:39.6]} 59...
Kh5 {[%clk 0:00:12.5]} 60. Kd4 {[%clk 0:01:39.5]} 60... Kh4 {[%clk 0:00:13.4]}
61. Kd5 {[%clk 0:01:40.4]} 61... Kh5 {[%clk 0:00:13.5]} 62. Kd6 {[%clk 0:01:41]}
62... Kh4 {[%clk 0:00:14.4]} 63. Ke5 {[%clk 0:01:41.5]} 63... Kh5 {[%clk
0:00:15.3]} 64. Kf4 {[%clk 0:01:39.5]} 64... Kh4 {[%clk 0:00:16.2]} 65. Kf5
{[%clk 0:01:39.8]} 65... Kh5 {[%clk 0:00:17.1]} 66. Rxg4 {[%clk 0:01:40]} 66...
Kh6 {[%clk 0:00:17.4]} 67. Kf4 {[%clk 0:01:40.2]} 67... Kh5 {[%clk 0:00:18.3]}
68. Kg3 {[%clk 0:01:40.5]} 68... Kh6 {[%clk 0:00:18.6]} 69. Rh4+ {[%clk
0:01:40.3]} 69... Kg6 {[%clk 0:00:18.9]} 70. Rf4 {[%clk 0:01:40.4]} 70... Kh6
{[%clk 0:00:19.8]} 71. Rf3 {[%clk 0:01:41]} 71... Kh5 {[%clk 0:00:20.7]} 72. Rf2
{[%clk 0:01:41.6]} 72... Kh6 {[%clk 0:00:21.6]} 73. Rg2 {[%clk 0:01:42.2]} 73...
Kh5 {[%clk 0:00:22.5]} 74. Rg1 {[%clk 0:01:42.9]} 74... Kh6 {[%clk 0:00:23.4]}
75. Rh1 {[%clk 0:01:43.5]} 75... Kh5 {[%clk 0:00:24.3]} 76. Rf1 {[%clk
0:01:44.1]} 76... Kh6 {[%clk 0:00:25.2]} 77. Re1 {[%clk 0:01:44.7]} 77... Kh5
{[%clk 0:00:25.9]} 78. Rd1 {[%clk 0:01:45.3]} 78... Kh6 {[%clk 0:00:26.8]} 79.
Rc1 {[%clk 0:01:45.9]} 79... Kh5 {[%clk 0:00:27.7]} 80. Rb1 {[%clk 0:01:46.4]}
80... Kh6 {[%clk 0:00:28.6]} 81. Ra1 {[%clk 0:01:46.8]} 81... Kh5 {[%clk
0:00:29.5]} 82. Ra2 {[%clk 0:01:47.3]} 82... Kh6 {[%clk 0:00:30.4]} 83. Rb2
{[%clk 0:01:47.9]} 83... Kh5 {[%clk 0:00:31.3]} 84. Rc2 {[%clk 0:01:48.4]} 84...
Kh6 {[%clk 0:00:32.2]} 85. Rc3 {[%clk 0:01:49]} 85... Kh5 {[%clk 0:00:33.1]} 86.
Rb3 {[%clk 0:01:49.5]} 86... Kh6 {[%clk 0:00:34]} 87. Ra3 {[%clk 0:01:49.1]}
87... Kh5 {[%clk 0:00:34.9]} 88. Ra4 {[%clk 0:01:49.2]} 88... Kh6 {[%clk
0:00:35.8]} 89. Rb4 {[%clk 0:01:49.9]} 89... Kh5 {[%clk 0:00:36.7]} 90. Rb5+
{[%clk 0:01:50.4]} 90... Kh6 {[%clk 0:00:37.6]} 91. Ra5 {[%clk 0:01:50.7]} 91...
Kh7 {[%clk 0:00:37.9]} 92. Ra6 {[%clk 0:01:51.3]} 92... Kg7 {[%clk 0:00:38.1]}
93. Rb6 {[%clk 0:01:51.9]} 93... Kh7 {[%clk 0:00:39]} 94. Rb7+ {[%clk
0:01:52.5]} 94... Kh6 {[%clk 0:00:39.3]} 95. Ra7 {[%clk 0:01:53.1]} 95... Kh5
{[%clk 0:00:39.7]} 96. Ra8 {[%clk 0:01:53.5]} 96... Kh6 {[%clk 0:00:40.6]} 97.
Rb8 {[%clk 0:01:54.1]} 97... Kh5 {[%clk 0:00:41.5]} 98. Rb7 {[%clk 0:01:54.5]}
98... Kh6 {[%clk 0:00:42.4]} 99. Rb6+ {[%clk 0:01:55.1]} 99... Kh5 {[%clk
0:00:43.3]} 100. Rb5+ {[%clk 0:01:55]} 100... Kh6 {[%clk 0:00:44.2]} 101. h3
{[%clk 0:01:54.9]} 101... Kg6 {[%clk 0:00:44.4]} 102. Rb4 {[%clk 0:01:55.1]}
102... Kh6 {[%clk 0:00:45.3]} 103. Rb3 {[%clk 0:01:55.6]} 103... Kg6 {[%clk
0:00:46.2]} 104. Rc3 {[%clk 0:01:56.2]} 104... Kh6 {[%clk 0:00:47.1]} 105. Rc2
{[%clk 0:01:56.8]} 105... Kg6 {[%clk 0:00:48]} 106. Rb2 {[%clk 0:01:57.4]}
106... Kh6 {[%clk 0:00:48.9]} 107. Ra2 {[%clk 0:01:57.9]} 107... Kg6 {[%clk
0:00:49.8]} 108. Ra1 {[%clk 0:01:58.5]} 108... Kh6 {[%clk 0:00:50.7]} 109. Rb1
{[%clk 0:01:59.1]} 109... Kg6 {[%clk 0:00:51.6]} 110. Rc1 {[%clk 0:01:59.6]}
110... Kh6 {[%clk 0:00:52.5]} 111. Rd1 {[%clk 0:01:59.9]} 111... Kg6 {[%clk
0:00:53.4]} 112. Re1 {[%clk 0:02:00.5]} 112... Kh6 {[%clk 0:00:54.3]} 113. Rf1
{[%clk 0:02:01.1]} 113... Kg6 {[%clk 0:00:55.2]} 114. Rg1 {[%clk 0:02:01.7]}
114... Kh6 {[%clk 0:00:56.1]} 115. Rh1 {[%clk 0:02:02.3]} 115... Kg6 {[%clk
0:00:57]} 116. Rh2 {[%clk 0:02:02.8]} 116... Kh6 {[%clk 0:00:57.9]} 117. Rg2
{[%clk 0:02:03.4]} 117... Kg6 {[%clk 0:00:58.8]} 118. Rf2 {[%clk 0:02:03.8]}
118... Kh6 {[%clk 0:00:59.7]} 119. Re2 {[%clk 0:02:04.3]} 119... Kg6 {[%clk
0:01:00.6]} 120. Kg4 {[%clk 0:02:04.7]} 120... Kh6 {[%clk 0:01:01.5]} 121. Rd2
{[%clk 0:02:05.1]} 121... Kg6 {[%clk 0:01:02.4]} 122. Rc2 {[%clk 0:02:05.6]}
122... Kh6 {[%clk 0:01:03.3]} 123. Rb2 {[%clk 0:02:06.2]} 123... Kg6 {[%clk
0:01:04.2]} 124. Ra2 {[%clk 0:02:06.9]} 124... Kh6 {[%clk 0:01:05.1]} 125. Ra3
{[%clk 0:02:07.3]} 125... Kg6 {[%clk 0:01:06]} 126. Rb3 {[%clk 0:02:07.9]}
126... Kh6 {[%clk 0:01:06.9]} 127. Rc3 {[%clk 0:02:08.5]} 127... Kg6 {[%clk
0:01:07.8]} 128. Rd3 {[%clk 0:02:09.1]} 128... Kh6 {[%clk 0:01:08.7]} 129. Re3
{[%clk 0:02:09.7]} 129... Kg6 {[%clk 0:01:09.6]} 130. Rf3 {[%clk 0:02:10.3]}
130... Kh6 {[%clk 0:01:10.5]} 131. Rg3 {[%clk 0:02:10.9]} 131... Kg6 {[%clk
0:01:11.4]} 132. Ra3 {[%clk 0:02:11.1]} 132... Kh6 {[%clk 0:01:12.3]} 133. Ra4
{[%clk 0:02:11.7]} 133... Kg6 {[%clk 0:01:13.2]} 134. Rb4 {[%clk 0:02:12.3]}
134... Kh6 {[%clk 0:01:14.1]} 135. Rc4 {[%clk 0:02:12.9]} 135... Kg6 {[%clk
0:01:15]} 136. Rd4 {[%clk 0:02:13.3]} 136... Kh6 {[%clk 0:01:15.9]} 137. Re4
{[%clk 0:02:13.8]} 137... Kg6 {[%clk 0:01:16.8]} 138. Rf4 {[%clk 0:02:14.4]}
138... Kh6 {[%clk 0:01:17.7]} 139. Rf5 {[%clk 0:02:14.9]} 139... Kg6 {[%clk
0:01:18.6]} 140. Re5 {[%clk 0:02:14.7]} 140... Kh6 {[%clk 0:01:19.5]} 141. Rd5
{[%clk 0:02:15.3]} 141... Kg6 {[%clk 0:01:20.4]} 142. Rc5 {[%clk 0:02:15.8]}
142... Kh6 {[%clk 0:01:21.3]} 143. Rb5 {[%clk 0:02:16.1]} 143... Kg6 {[%clk
0:01:22.2]} 144. Ra5 {[%clk 0:02:16.4]} 144... Kh6 {[%clk 0:01:23.1]} 145. h4
{[%clk 0:02:16.5]} 145... Kg6 {[%clk 0:01:24]} 146. Ra6+ {[%clk 0:02:15.7]}
146... Kg7 {[%clk 0:01:24.3]} 147. Kg5 {[%clk 0:02:16]} 147... Kh7 {[%clk
0:01:25.2]} 148. h5 {[%clk 0:02:16]} 148... Kg7 {[%clk 0:01:26.1]} 149. h6+
{[%clk 0:02:15.8]} 149... Kh7 {[%clk 0:01:27]} 150. Ra7+ {[%clk 0:02:15.9]}
150... Kh8 {[%clk 0:01:27.2]} 151. Kg6 {[%clk 0:02:16.2]} 151... Kg8 {[%clk
0:01:28.1]} 152. Rf7 {[%clk 0:02:02.3]} 152... Kh8 {[%clk 0:01:29]} 153. Rf6
{[%clk 0:02:02.1]} 153... Kg8 {[%clk 0:01:29.9]} 154. Rf5 {[%clk 0:02:02.4]}
154... Kh8 {[%clk 0:01:30.8]} 155. Rf4 {[%clk 0:02:02.5]} 155... Kg8 {[%clk
0:01:31.7]} 156. Rf3 {[%clk 0:02:02.9]} 156... Kh8 {[%clk 0:01:32.6]} 157. Rf2
{[%clk 0:02:03.3]} 157... Kg8 {[%clk 0:01:33.5]} 158. Rf1 {[%clk 0:02:03.6]}
158... Kh8 {[%clk 0:01:34.4]} 159. Rf2 {[%clk 0:02:04]} 159... Kg8 {[%clk
0:01:35.3]} 160. Rf8+ {[%clk 0:02:03.8]} 160... Kxf8 {[%clk 0:01:34.6]} 161. h7
{[%clk 0:02:04.1]} 161... Ke7 {[%clk 0:01:35.1]} 162. h8=R {[%clk 0:02:02.9]}
162... Ke6 {[%clk 0:01:36]} 163. Rf8 {[%clk 0:02:02.7]} 163... Ke7 {[%clk
0:01:36.9]} 164. Rf7+ {[%clk 0:02:02.9]} 164... Ke6 {[%clk 0:01:37.8]} 165. Rf5
{[%clk 0:02:02.2]} 165... Ke7 {[%clk 0:01:38.7]} 166. Rf6 {[%clk 0:02:01.5]}
166... Kd7 {[%clk 0:01:38.5]} 167. Kf5 {[%clk 0:02:01.9]} 167... Ke7 {[%clk
0:01:39.4]} 168. Ke5 {[%clk 0:02:02.1]} 168... Kd7 {[%clk 0:01:39.7]} 169. Kd5
{[%clk 0:02:02.2]} 169... Ke7 {[%clk 0:01:40.6]} 170. Rf5 {[%clk 0:02:02.7]}
170... Ke8 {[%clk 0:01:40]} 171. Kd6 {[%clk 0:02:02.1]} 171... Kd8 {[%clk
0:01:39.6]} 172. Rf8# {[%clk 0:02:03]} 1-0